bitfinex-derivatives/quotes_ETHF0:USTF0_20240927
["timestamp","ask_amount","ask_price","bid_price","bid_amount"]
[1727405313855,0.78486,2622.5,2622.3,8.17635186]
[1727405314060,3.2078,2622.4,2622.3,8.17635186]
[1727405314565,3.58907,2622.4,2622.3,8.17635186]
[1727405326373,0.38127,2622.4,2622.3,8.17635186]
[1727405327173,0.38127,2622.4,2622.3,14.57635186]
[1727405332978,3.58907,2622.4,2622.3,14.57635186]
[1727405333376,3.58907,2622.4,2622.3,6.4]
[1727405333573,3.58907,2622.4,2622.2,0.3971]
[1727405333574,0.38128,2622.3,2622.2,0.3971]
[1727405334582,3.8136,2622.3,2622.0,0.4055]
[1727405334779,3.58911,2622.1,2622.0,0.4055]
[1727405334980,3.58911,2622.1,2622.0,6.8055]
[1727405335676,3.2078,2622.1,2622.0,6.8055]
[1727405337084,3.2078,2622.4,2622.1,0.38131]
[1727405337381,3.2078,2622.4,2622.3,1.37]
[1727405338080,3.58907,2622.4,2622.3,1.37]
[1727405338487,3.2078,2622.4,2622.3,1.37]
[1727405338897,3.58907,2622.4,2622.3,1.37]
[1727405340799,3.2078,2622.8,2622.3,1.37]
[1727405340995,3.58902,2622.8,2622.7,1.37]
[1727405341194,3.2078,2622.8,2622.7,1.37]
[1727405341394,3.58901,2622.8,2622.7,1.37]
[1727405341603,3.2078,2622.8,2622.7,1.37]
[1727405341898,3.2078,2622.8,2622.7,5.56402]
[1727405342394,3.2078,2622.8,2622.7,4.6361069]
[1727405342992,3.2078,2622.8,2622.7,8.4489069]
[1727405343199,3.2078,2622.8,2622.7,6.94879186]
[1727405343498,3.2078,2623.1,2622.9,0.38119]
[1727405343701,3.2078,2623.1,2623.0,2.14898]
[1727405343897,3.2078,2623.1,2623.0,3.14775371]
[1727405344793,3.2078,2623.1,2623.0,2.76657371]
[1727405345001,3.2078,2623.1,2623.0,3.14775371]
[1727405345191,3.2078,2623.1,2623.0,1.7678]
[1727405345493,3.2078,2623.1,2623.0,2.14898]
[1727405345698,3.2078,2623.1,2623.0,1.7678]
[1727405345893,3.2078,2623.1,2623.0,2.14898]
[1727405346696,0.39,2623.4,2623.1,0.38116]
[1727405346894,0.39,2623.4,2623.2,1.37]
[1727405347093,0.77112,2623.4,2623.2,1.7751]
[1727405347498,0.77112,2623.4,2623.2,8.1751]
[1727405347702,0.39,2623.4,2623.2,8.1751]
[1727405348597,0.39,2623.4,2623.2,6.8051]
[1727405348598,2.14114,2623.4,2623.2,6.8051]
[1727405348807,0.38114,2623.3,2623.2,6.8051]
[1727405348990,0.38114,2623.3,2623.2,6.4]
[1727405349695,0.38114,2623.3,2623.0,2.1729]
[1727405349896,3.2078,2623.1,2623.0,0.8029]
[1727405350298,3.2078,2623.1,2623.0,7.2029]
[1727405350704,3.2078,2623.1,2623.0,6.7978]
[1727405357702,3.2078,2623.1,2623.0,0.3978]
[1727405358004,3.58897,2623.1,2623.0,0.3978]
[1727405358199,3.2078,2623.1,2623.0,0.3978]
[1727405361009,3.58897,2623.1,2622.9,6.4]
[1727405361302,0.4058,2623.0,2622.9,6.4]
[1727405364500,0.4058,2623.0,2622.9,6.7812]
[1727405364901,3.2078,2623.1,2622.9,6.7812]
[1727405366807,1.54826,2623.2,2622.9,6.7812]
[1727405367004,3.2078,2623.1,2622.9,6.7812]
[1727405367606,3.2078,2623.1,2623.0,0.38118]
[1727405368112,3.2078,2623.1,2622.9,6.78119]
[1727405368513,3.2078,2623.1,2623.0,1.75118]
[1727405368714,3.2078,2623.1,2623.0,2.12308]
[1727405369110,3.2078,2623.1,2623.0,5.93508]
[1727405369711,3.2078,2623.1,2623.0,5.5539]
[1727405370214,3.2078,2623.1,2623.0,5.93508]
[1727405372514,3.2078,2623.1,2623.0,5.56318]
[1727405372911,3.2078,2623.1,2623.0,5.182]
[1727405373118,3.2078,2623.1,2622.9,6.4]
[1727405373310,1.58638,2623.0,2622.9,6.4]
[1727405373619,0.38122,2622.8,2622.6,0.99877371]
[1727405373813,4.5778,2622.7,2622.5,0.99877371]
[1727405374113,4.5778,2622.7,2622.4,1.49816057]
[1727405374114,4.5778,2622.7,2622.4,6.4]
[1727405374323,1.37,2622.5,2622.0,0.99877371]
[1727405374515,3.5891,2622.2,2621.9,0.99877371]
[1727405374717,3.5891,2622.2,2622.0,6.4]
[1727405374918,0.4101,2622.1,2622.0,6.4]
[1727405376414,0.4101,2622.1,2622.0,6.78133]
[1727405378718,3.6179,2622.1,2622.0,6.78133]
[1727405379017,3.2078,2622.1,2622.0,6.78133]
[1727405381313,0.392,2622.3,2622.0,7.39877371]
[1727405381515,3.2078,2622.4,2622.2,0.3813]
[1727405381816,3.2078,2622.4,2622.3,1.16538]
[1727405382216,3.2078,2622.4,2622.3,7.56538]
[1727405383018,0.4097,2622.6,2622.3,7.56538]
[1727405386012,0.79094,2622.6,2622.3,7.56538]
[1727405390622,0.79094,2622.6,2622.3,7.1841]
[1727405391324,3.99874,2622.6,2622.3,7.1841]
[1727405391924,0.79094,2622.6,2622.3,7.1841]
[1727405392426,3.99874,2622.6,2622.3,7.1841]
[1727405394434,0.38126,2622.5,2622.3,7.1841]
[1727405398730,0.38127,2622.4,2622.3,0.3904]
[1727405403829,0.38129,2622.3,2622.1,6.7902]
[1727405404033,3.2078,2622.2,2622.1,6.7902]
[1727405405230,8.3914,2622.2,2621.9,0.99877371]
[1727405405427,1.37,2622.1,2621.7,1.75517371]
[1727405405633,0.77473,2622.0,2621.7,1.75517371]
[1727405405832,0.8045,2622.0,2621.8,6.4]
[1727405408942,3.2078,2622.2,2621.9,1.75134]
[1727405409144,3.2078,2622.2,2622.0,0.3909]
[1727405409339,3.5891,2622.2,2622.0,0.3909]
[1727405409640,3.2078,2622.2,2622.0,0.3909]
[1727405410243,3.2078,2622.2,2622.0,0.77222]
[1727405410446,0.7963,2622.3,2622.1,2.53701]
[1727405410743,3.58906,2622.5,2622.1,2.537]
[1727405410945,0.3845,2622.4,2622.1,2.537]
[1727405411239,0.3845,2622.4,2622.2,6.4]
[1727405411842,0.3845,2622.4,2622.3,0.4084]
[1727405412543,0.76577,2622.4,2622.3,0.4084]
[1727405413641,0.3845,2622.4,2622.3,0.4084]
[1727405414339,0.76577,2622.4,2622.3,0.4084]
[1727405414544,0.3845,2622.4,2622.3,0.4084]
[1727405415135,3.2078,2622.5,2622.3,0.4084]
[1727405415336,3.2078,2622.5,2622.4,1.37]
[1727405415543,3.58905,2622.5,2622.4,1.37]
[1727405419142,3.58905,2622.5,2622.4,2.36877371]
[1727405420637,3.2078,2622.5,2622.4,2.36877371]
[1727405420944,3.58905,2622.5,2622.4,0.99877371]
[1727405424862,3.2078,2622.5,2622.4,0.99877371]
[1727405425052,3.58905,2622.5,2622.4,0.99877371]
[1727405425249,3.2078,2622.5,2622.4,0.99877371]
[1727405425642,3.2078,2622.8,2622.4,14.57527084]
[1727405425843,3.2078,2622.8,2622.6,1.49932629]
[1727405426042,3.58902,2622.8,2622.7,1.39366784]
[1727405426244,3.58902,2622.8,2622.7,0.99950898]
[1727405427656,3.2078,2622.8,2622.7,0.99950898]
[1727405429050,3.2078,2622.8,2622.7,2.36950898]
[1727405429251,3.2078,2622.8,2622.7,2.75360898]
[1727405429954,3.2078,2622.8,2622.7,3.13482898]
[1727405430155,3.2078,2622.8,2622.7,5.02775953]
[1727405430653,3.5882,2623.1,2622.9,0.38118]
[1727405430850,3.5882,2623.1,2622.7,3.14721324]
[1727405430851,3.2078,2623.1,2623.0,3.15260786]
[1727405431054,3.5638,2623.5,2623.3,0.38113]
[1727405431250,0.4075,2623.6,2623.4,1.7541]
[1727405431445,3.2078,2623.5,2623.4,1.7541]
[1727405431848,3.2078,2623.5,2623.4,0.3841]
[1727405432551,3.2078,2623.5,2623.1,2.77431064]
[1727405432759,3.58891,2623.5,2623.1,3.15591064]
[1727405433055,3.58891,2623.5,2623.1,3.53707064]
[1727405433355,3.58891,2623.5,2623.1,3.15591064]
[1727405433749,3.58891,2623.5,2623.1,3.53707064]
[1727405434052,3.2078,2623.5,2623.1,3.53707064]
[1727405434259,3.2078,2623.5,2623.1,2.53826]
[1727405434556,3.58891,2623.5,2623.1,2.53826]
[1727405438549,3.2078,2623.5,2623.1,2.1571]
[1727405438756,3.2078,2623.5,2623.3,1.75113]
[1727405439060,3.2078,2623.5,2623.4,0.4095]
[1727405439261,3.2078,2623.5,2623.4,7.1812]
[1727405439652,3.2078,2623.5,2623.4,0.7812]
[1727405440252,0.4075,2623.6,2623.4,0.7812]
[1727405440661,0.4075,2623.6,2623.4,1.16231]
[1727405441153,0.4075,2623.6,2623.4,0.7812]
[1727405441347,3.2078,2623.5,2623.4,0.7812]
[1727405445954,3.5856,2623.5,2623.4,0.7812]
[1727405447763,3.5856,2623.5,2623.4,0.4095]
[1727405448161,3.5856,2623.5,2623.3,7.77]
[1727405448458,3.96671,2623.5,2623.3,7.77]
[1727405448865,3.96671,2623.5,2623.3,1.37]
[1727405449457,0.38112,2623.4,2623.3,1.37]
[1727405449861,3.5856,2623.5,2623.3,1.37]
[1727405449862,3.96672,2623.5,2623.3,1.37]
[1727405454971,3.5856,2623.5,2623.4,6.4]
[1727405460569,3.96671,2623.5,2623.4,6.4]
[1727405461668,0.75891,2623.5,2623.4,6.4]
[1727405461869,3.96671,2623.5,2623.4,6.4]
[1727405464166,3.5856,2623.5,2623.4,6.4]
[1727405465762,8.7676,2623.5,2623.0,0.99881064]
[1727405465962,3.2078,2623.1,2622.8,0.383]
[1727405466169,1.1883,2623.0,2622.7,10.531]
[1727405466368,1.1883,2623.0,2622.7,6.78122]
[1727405466676,1.1883,2623.0,2622.8,1.37]
[1727405466871,1.1883,2623.0,2622.9,1.37]
[1727405467069,0.812,2623.0,2622.9,1.37]
[1727405467270,0.812,2623.0,2622.9,2.1637]
[1727405467570,0.4024,2623.0,2622.9,2.1637]
[1727405470372,0.4024,2623.0,2622.9,3.16251064]
[1727405470877,0.4024,2623.0,2622.9,3.56641064]
[1727405471273,0.4024,2623.0,2622.9,4.95939559]
[1727405471775,0.4024,2623.0,2622.9,4.95916347]
[1727405471973,0.4024,2623.0,2622.9,4.95915961]
[1727405472370,0.4024,2623.0,2622.9,3.96058495]
[1727405472578,0.4024,2623.0,2622.9,4.95934214]
[1727405472878,0.4024,2623.0,2622.9,5.45880091]
[1727405473373,0.4024,2623.0,2622.9,3.96058495]
[1727405473578,0.4024,2623.0,2622.9,4.34178495]
[1727405473777,0.4024,2623.0,2622.9,5.84000091]
[1727405475477,0.4024,2623.0,2622.9,5.84072408]
[1727405475884,0.4024,2623.0,2622.9,12.24072408]
[1727405476077,0.4024,2623.0,2622.9,10.48952408]
[1727405476377,0.4024,2623.0,2622.9,10.74178495]
[1727405476582,0.4024,2623.0,2622.9,10.36058495]
[1727405477478,0.4024,2623.0,2622.9,12.24085292]
[1727405478082,0.4024,2623.0,2622.9,11.85965292]
[1727405478483,0.4024,2623.0,2622.9,10.36058495]
[1727405478888,0.3957,2623.2,2623.0,0.38118]
[1727405479187,0.3957,2623.2,2623.1,2.36929252]
[1727405479781,0.3996,2623.3,2623.1,3.76326277]
[1727405480082,3.2078,2623.4,2623.2,2.774417]
[1727405480285,3.2078,2623.4,2623.3,2.74999252]
[1727405482778,3.2078,2623.4,2623.3,4.54309744]
[1727405482983,3.2078,2623.4,2623.3,3.14919252]
[1727405484181,3.2078,2623.4,2623.3,4.54624334]
[1727405484781,3.2078,2623.4,2623.3,4.54624135]
[1727405485480,3.2078,2623.4,2623.3,3.14919252]
[1727405487086,3.2078,2623.4,2623.3,3.54698577]
[1727405487389,3.2078,2623.4,2623.3,5.04592455]
[1727405487590,3.2078,2623.4,2623.3,3.54698885]
[1727405488291,3.2078,2623.4,2623.3,5.04592763]
[1727405491389,3.2078,2623.4,2623.3,11.44592763]
[1727405492690,3.2078,2623.4,2623.3,10.04883878]
[1727405492884,3.2078,2623.4,2623.3,11.44603254]
[1727405493085,0.78071,2623.5,2623.3,11.44603254]
[1727405493286,3.98851,2623.5,2623.4,0.99932195]
[1727405495094,0.78071,2623.5,2623.4,0.99932195]
[1727405495700,3.98851,2623.5,2623.4,0.99932195]
[1727405496890,0.38112,2623.4,2623.3,7.78002195]
[1727405497397,0.38112,2623.4,2623.3,9.18252337]
[1727405497598,0.38112,2623.4,2623.3,9.18253752]
[1727405497795,0.38112,2623.4,2623.3,9.18252965]
[1727405497997,0.38112,2623.4,2623.3,9.18252557]
[1727405498192,0.38112,2623.4,2623.3,7.78002195]
[1727405498595,3.6074,2623.5,2623.3,8.18321592]
[1727405498796,3.98851,2623.5,2623.3,7.78004495]
[1727405499198,3.98851,2623.5,2623.4,0.99934495]
[1727405500291,3.6074,2623.5,2623.4,0.99934495]
[1727405501599,3.6074,2623.5,2623.3,7.78004495]
[1727405501798,3.98851,2623.5,2623.3,7.78004495]
[1727405502893,3.6074,2623.5,2623.3,7.78004495]
[1727405503099,3.98851,2623.5,2623.3,7.78004495]
[1727405503291,0.38112,2623.4,2623.3,7.39934495]
[1727405503697,3.98851,2623.5,2623.3,7.39934495]
[1727405508100,3.6074,2623.5,2623.3,7.39934495]
[1727405508298,3.98851,2623.5,2623.4,0.99934495]
[1727405513204,0.38112,2623.4,2623.3,8.76934495]
[1727405513511,0.38112,2623.4,2623.3,10.17212829]
[1727405513708,3.6074,2623.5,2623.3,8.76934495]
[1727405513909,3.98851,2623.5,2623.3,8.76934495]
[1727405519026,3.98851,2623.5,2623.4,0.99934495]
[1727405519319,3.98851,2623.5,2623.3,9.14334495]
[1727405520115,3.98851,2623.5,2623.4,0.99934495]
[1727405520313,3.98851,2623.5,2623.3,9.14334495]
[1727405520608,3.98851,2623.5,2623.4,0.99934495]
[1727405520814,3.98851,2623.5,2623.3,9.14334495]
[1727405521013,0.38112,2623.4,2623.3,9.14334495]
[1727405521216,0.38112,2623.4,2623.3,10.54677979]
[1727405521410,3.6074,2623.5,2623.3,9.54752598]
[1727405521411,3.98852,2623.5,2623.3,9.54752598]
[1727405521719,3.98852,2623.5,2623.3,9.14409679]
[1727405522323,3.98852,2623.5,2623.4,1.00009679]
[1727405523125,3.98852,2623.5,2623.4,2.40381881]
[1727405523521,3.98852,2623.5,2623.4,1.40372202]
[1727405523820,3.6074,2623.5,2623.4,2.9026608]
[1727405524023,3.98851,2623.5,2623.4,2.9026608]
[1727405524425,3.2078,2623.5,2623.4,4.2726608]
[1727405524735,0.356,2624.0,2623.8,0.38105]
[1727405525028,3.99571,2624.2,2623.9,5.95943072]
[1727405525224,3.99571,2624.2,2624.1,1.00037277]
[1727405525628,0.38102,2624.1,2624.0,1.00037277]
[1727405526021,0.38104,2624.0,2623.9,1.39817277]
[1727405526227,0.38104,2624.0,2623.9,1.00037277]
[1727405526228,0.78614,2624.0,2623.9,1.00037277]
[1727405526526,4.59734,2624.0,2623.9,1.00037277]
[1727405526934,4.59734,2624.0,2623.8,1.00037277]
[1727405527226,3.5798,2623.9,2623.8,1.00037277]
[1727405527427,3.5798,2623.9,2623.8,2.40309392]
[1727405527625,3.5798,2623.9,2623.8,1.00037277]
[1727405529130,3.96085,2623.9,2623.8,1.00037277]
[1727405530027,3.5798,2623.9,2623.8,1.00037277]
[1727405530223,3.5798,2623.9,2623.7,1.7703]
[1727405531923,3.2078,2623.9,2623.7,2.15138]
[1727405532126,3.2078,2623.9,2623.8,0.38106]
[1727405532628,0.356,2624.5,2623.8,21.92428679]
[1727405532820,0.3743,2624.6,2624.4,1.37]
[1727405533025,0.3743,2624.6,2624.5,2.149]
[1727405533225,3.6108,2624.7,2624.5,2.149]
[1727405533421,3.6108,2624.7,2624.6,6.4]
[1727405533628,3.2078,2624.7,2624.6,6.4]
[1727405533822,3.2078,2624.7,2624.6,6.7757]
[1727405535227,3.2078,2624.7,2624.6,10.5861]
[1727405535426,3.2078,2624.7,2624.6,6.7757]
[1727405537724,3.2078,2624.7,2624.6,7.15665]
[1727405538333,3.2078,2624.7,2624.6,6.7757]
[1727405538834,3.2078,2624.7,2624.6,7.15665]
[1727405539533,3.2078,2624.7,2624.6,6.7757]
[1727405541330,3.2078,2624.7,2624.6,6.4]
[1727405541533,3.58873,2624.7,2624.6,6.4]
[1727405542521,7.97055,2624.7,2624.2,1.37]
[1727405542721,7.97055,2624.7,2623.9,1.00037277]
[1727405542722,3.2078,2624.3,2624.1,1.37]
[1727405542937,0.4074,2624.2,2624.1,1.37]
[1727405543227,0.4074,2624.2,2623.5,4.49085266]
[1727405543434,0.7516,2624.1,2623.8,1.37]
[1727405543733,0.38104,2624.0,2623.9,6.4]
[1727405544634,0.38104,2624.0,2623.9,7.77]
[1727405545833,0.38107,2623.8,2623.6,1.37]
[1727405546032,3.2078,2623.7,2623.6,1.37]
[1727405546427,3.2078,2623.7,2623.6,6.4]
[1727405549724,3.2078,2623.7,2623.3,2.97]
[1727405549725,3.58888,2623.7,2623.3,2.97]
[1727405549928,3.58893,2623.4,2623.1,4.5378]
[1727405550228,3.2078,2623.4,2622.9,2.97]
[1727405550435,0.38114,2623.3,2623.1,6.4]
[1727405550740,3.2078,2623.2,2623.1,6.4]
[1727405554237,3.58895,2623.2,2623.1,6.4]
[1727405556033,0.38115,2623.2,2623.1,6.4]
[1727405556336,7.40095,2623.2,2623.1,6.4]
[1727405556541,0.38123,2622.7,2622.3,3.148]
[1727405556845,3.2078,2622.6,2622.3,3.3742]
[1727405557137,0.38127,2622.4,2622.3,0.4042]
[1727405557544,0.77426,2622.5,2622.3,0.4042]
[1727405558041,0.393,2622.5,2622.3,0.4042]
[1727405558436,0.393,2622.5,2622.3,3.3742]
[1727405559434,3.2078,2622.4,2622.3,3.3742]
[1727405562742,0.393,2622.5,2622.3,9.7742]
[1727405562950,3.2078,2622.4,2622.3,9.7742]
[1727405563149,3.2078,2622.4,2622.3,10.1696]
[1727405570247,3.2078,2622.4,2622.3,7.1996]
[1727405570451,3.2078,2622.4,2622.3,8.5696]
[1727405571660,3.58907,2622.4,2622.3,8.1742]
[1727405571951,3.96377,2622.4,2622.3,6.4]
[1727405573154,0.38133,2622.0,2621.9,0.3922]
[1727405573351,0.38134,2621.9,2621.7,1.37]
[1727405573549,1.51694,2621.9,2621.7,1.37]
[1727405573851,1.51694,2621.9,2621.8,6.4]
[1727405574447,1.1356,2621.9,2621.8,6.4]
[1727405574642,1.51694,2621.9,2621.8,6.4]
[1727405575352,0.38137,2621.7,2621.5,3.769]
[1727405575652,3.58917,2621.7,2621.5,3.769]
[1727405575853,3.58917,2621.7,2621.6,6.4]
[1727405576453,3.2078,2621.7,2621.6,6.4]
[1727405576956,3.2078,2621.7,2621.5,3.769]
[1727405577562,3.2078,2621.7,2621.6,6.4]
[1727405580151,0.38136,2621.8,2621.6,6.4]
[1727405580357,1.1356,2621.9,2621.6,6.4]
[1727405581360,0.38136,2621.8,2621.6,6.4]
[1727405581561,1.51695,2621.9,2621.6,6.4]
[1727405583560,0.38136,2621.8,2621.6,6.4]
[1727405584263,0.38137,2621.7,2621.6,6.4]
[1727405584464,3.58917,2621.7,2621.6,6.4]
[1727405585664,3.2078,2621.7,2621.3,6.1878]
[1727405585868,3.2078,2621.4,2621.1,3.7613]
[1727405586178,3.2078,2621.4,2621.2,14.28268514]
[1727405586179,0.3826,2621.3,2621.2,14.28268514]
[1727405588068,0.3826,2621.3,2621.1,2.98]
[1727405588673,0.3826,2621.3,2621.1,9.38]
[1727405593463,0.3826,2621.3,2621.1,9.76145]
[1727405593661,0.3826,2621.3,2621.1,9.38]
[1727405594163,0.3826,2621.3,2621.1,9.76145]
[1727405594867,0.3826,2621.3,2621.2,0.4029]
[1727405596268,0.3826,2621.3,2621.2,1.7729]
[1727405600369,0.3826,2621.3,2621.2,0.4029]
[1727405600572,0.3826,2621.3,2621.2,1.7729]
[1727405601874,0.3826,2621.3,2621.2,0.4029]
[1727405602074,0.3826,2621.3,2621.2,1.7729]
[1727405603873,0.3826,2621.3,2621.2,2.1744]
[1727405605664,0.3826,2621.3,2621.2,0.8044]
[1727405605871,0.76403,2621.3,2621.2,0.8044]
[1727405606169,0.3826,2621.3,2621.2,0.8044]
[1727405607374,0.76403,2621.3,2621.2,0.8044]
[1727405607569,11.5678,2621.3,2620.7,1.00037277]
[1727405607769,3.2078,2621.1,2620.8,0.38149]
[1727405608072,0.3779,2621.0,2620.8,0.38149]
[1727405608470,0.3813,2620.9,2620.8,0.38149]
[1727405609170,0.3813,2620.9,2620.8,1.75149]
[1727405612981,3.2078,2621.1,2620.9,0.38148]
[1727405613581,3.2078,2621.1,2621.0,6.4]
[1727405618078,3.2078,2621.1,2620.9,0.38148]
[1727405618488,3.2078,2621.1,2620.9,1.38185277]
[1727405618690,3.2078,2621.1,2621.0,6.4]
[1727405618884,3.2078,2621.1,2621.0,6.78147]
[1727405619084,3.2078,2621.1,2621.0,6.4]
[1727405622181,3.2078,2621.1,2620.9,2.75185277]
[1727405622690,3.2078,2621.1,2620.9,9.15185277]
[1727405624591,3.2078,2621.1,2620.9,7.78185277]
[1727405625188,4.5778,2621.1,2620.9,7.40037277]
[1727405625383,0.38149,2620.9,2620.8,1.00037277]
[1727405625587,0.3813,2621.0,2620.7,1.38317277]
[1727405625786,0.3813,2621.0,2620.7,0.3828]
[1727405625787,3.9874,2620.8,2620.7,0.3828]
[1727405626896,0.38152,2620.7,2620.6,1.00037277]
[1727405627197,0.38152,2620.7,2620.5,1.00037277]
[1727405627995,3.98741,2620.8,2620.5,1.00037277]
[1727405628200,3.98741,2620.8,2620.5,1.38191277]
[1727405628501,3.98741,2620.8,2620.6,1.00037277]
[1727405628892,3.98741,2620.8,2620.5,2.75191277]
[1727405629393,3.6059,2620.8,2620.6,0.38152]
[1727405629591,3.6059,2620.8,2620.6,1.38189277]
[1727405629790,3.6059,2620.8,2620.7,0.7915]
[1727405629989,3.6059,2620.8,2620.7,2.1615]
[1727405630190,3.6059,2620.8,2620.7,2.54302]
[1727405630592,3.6059,2620.8,2620.7,3.16187277]
[1727405630985,3.6059,2620.8,2620.7,6.97787277]
[1727405631196,3.6059,2620.8,2620.7,3.16187277]
[1727405631197,3.2078,2620.8,2620.7,3.16187277]
[1727405632098,3.2078,2620.8,2620.7,4.58282199]
[1727405632294,3.2078,2620.8,2620.7,3.16187277]
[1727405632595,3.6057,2620.8,2620.7,3.16187277]
[1727405634292,3.2078,2621.1,2620.8,0.38149]
[1727405634493,3.98556,2621.1,2620.9,1.37]
[1727405634995,3.98556,2621.1,2621.0,6.4]
[1727405635399,3.6041,2621.1,2621.0,6.4]
[1727405635795,3.98556,2621.1,2621.0,6.4]
[1727405637804,3.6041,2621.1,2621.0,6.4]
[1727405638505,3.6041,2621.1,2621.0,1.7622]
[1727405638715,3.6041,2621.1,2621.0,2.76257277]
[1727405638892,3.6041,2621.1,2621.0,10.58354321]
[1727405639096,3.6041,2621.1,2621.0,9.16257277]
[1727405639302,3.2078,2621.1,2621.0,9.16257277]
[1727405639606,3.2078,2621.1,2621.0,2.76257277]
[1727405642592,3.2078,2621.1,2621.0,4.18380772]
[1727405642894,1.15084,2621.3,2621.0,2.76257277]
[1727405643095,1.15084,2621.3,2621.1,1.40881755]
[1727405643301,0.75344,2621.3,2621.2,1.37]
[1727405643499,0.38144,2621.2,2621.1,1.81451755]
[1727405643696,0.38144,2621.2,2621.1,3.23576146]
[1727405644298,0.38144,2621.2,2621.1,1.81451755]
[1727405644699,0.372,2621.3,2621.1,1.81451755]
[1727405644700,0.75343,2621.3,2621.1,1.81451755]
[1727405645705,0.38144,2621.2,2621.1,1.81451755]
[1727405645901,0.38144,2621.2,2621.1,3.23588265]
[1727405646098,0.75344,2621.3,2621.1,1.81451755]
[1727405646506,0.372,2621.3,2621.1,1.81451755]
[1727405647008,0.75344,2621.3,2621.1,1.81451755]
[1727405647599,0.372,2621.3,2621.1,1.81451755]
[1727405647997,0.75343,2621.3,2621.1,1.81451755]
[1727405649305,3.2078,2621.2,2621.1,1.81451755]
[1727405649599,3.2078,2621.2,2621.1,3.23610784]
[1727405650600,3.2078,2621.2,2621.1,2.23649029]
[1727405651913,3.2078,2621.2,2621.1,2.23673107]
[1727405652611,3.2078,2621.2,2621.1,3.73729023]
[1727405652812,3.58924,2621.2,2621.1,3.73729023]
[1727405653001,3.58924,2621.2,2621.1,2.23673107]
[1727405653197,3.2078,2621.2,2621.1,2.23673107]
[1727405653402,3.2078,2621.2,2621.1,3.73729023]
[1727405656003,3.2078,2621.2,2621.1,2.42195019]
[1727405656310,3.2078,2621.2,2621.1,2.42200713]
[1727405656505,3.2078,2621.2,2621.1,2.92244717]
[1727405657204,3.2078,2621.2,2621.1,2.92238985]
[1727405661313,3.2078,2621.2,2621.1,1.42183069]
[1727405661705,3.2078,2621.2,2621.1,2.92238985]
[1727405662306,3.2078,2621.2,2621.1,2.92220773]
[1727405664518,3.2078,2621.2,2621.1,1.42164857]
[1727405664718,3.2078,2621.2,2621.1,2.92220773]
[1727405665316,3.58924,2621.2,2621.1,2.92220773]
[1727405665525,3.58924,2621.2,2621.1,2.42150013]
[1727405665921,3.2078,2621.2,2621.1,2.42150013]
[1727405666117,3.2078,2621.2,2621.1,1.42164857]
[1727405666826,3.2078,2621.2,2621.1,2.92220773]
[1727405667122,3.2078,2621.2,2621.1,1.42164857]
[1727405667624,3.2078,2621.2,2621.1,1.42150076]
[1727405667813,3.2078,2621.2,2621.1,2.92205992]
[1727405668014,3.2078,2621.2,2621.1,1.42150076]
[1727405668319,3.2078,2621.2,2621.1,2.92205992]
[1727405668526,3.2078,2621.2,2621.1,1.42150076]
[1727405668822,3.2078,2621.2,2621.1,2.92205992]
[1727405669020,3.2078,2621.2,2621.1,2.42130452]
[1727405669222,3.2078,2621.2,2621.1,1.42150076]
[1727405670220,3.58924,2621.2,2621.1,2.42128724]
[1727405670621,3.2078,2621.2,2621.1,2.42128724]
[1727405670822,3.2078,2621.2,2621.1,2.42129502]
[1727405671325,3.2078,2621.2,2621.1,0.99979426]
[1727405671513,3.2078,2621.2,2621.1,2.42126566]
[1727405672119,3.2078,2621.2,2621.1,10.321852]
[1727405672425,3.2078,2621.2,2621.1,8.82131644]
[1727405672720,3.2078,2621.2,2621.1,9.32203056]
[1727405673119,3.2078,2621.2,2621.1,7.8214714]
[1727405673732,3.2078,2621.2,2621.1,9.32203056]
[1727405674825,3.2078,2621.2,2621.1,9.70349056]
[1727405675437,3.2078,2621.2,2621.1,9.32203056]
[1727405675626,3.2078,2621.2,2621.1,7.8214714]
[1727405676130,3.2078,2621.2,2621.1,7.82215007]
[1727405677732,0.75343,2621.3,2621.1,7.82215007]
[1727405678029,0.75343,2621.3,2621.2,2.9231326]
[1727405680527,0.372,2621.3,2621.2,2.92361317]
[1727405682336,0.372,2621.3,2621.2,1.42241798]
[1727405683030,0.372,2621.3,2621.2,1.50156007]
[1727405683231,0.372,2621.3,2621.2,2.92477759]
[1727405683742,0.372,2621.3,2621.2,1.42321752]
[1727405684236,0.75343,2621.3,2621.2,1.42321752]
[1727405685231,0.75343,2621.3,2621.2,2.92521328]
[1727405685537,0.75343,2621.3,2620.8,0.38149]
[1727405685538,3.8152,2621.2,2621.0,0.38300121]
[1727405685730,0.38149,2620.9,2620.8,1.50200575]
[1727405686438,0.38149,2620.9,2620.7,1.50200575]
[1727405686639,3.2078,2620.8,2620.7,1.50200575]
[1727405688635,3.5836,2620.8,2620.7,1.50200575]
[1727405690441,3.5836,2620.8,2620.7,1.87500575]
[1727405690641,0.3758,2620.8,2620.7,1.87500575]
[1727405691033,3.5836,2620.8,2620.7,1.87500575]
[1727405691233,0.3758,2620.8,2620.7,1.87500575]
[1727405691443,3.5836,2620.8,2620.7,1.87500575]
[1727405691639,3.5836,2620.8,2620.7,0.373]
[1727405692343,3.9651,2620.8,2620.7,0.373]
[1727405692545,0.38152,2620.7,2620.6,1.50200575]
[1727405695240,0.38152,2620.7,2620.6,2.87200575]
[1727405697038,0.7573,2620.8,2620.6,2.87200575]
[1727405697239,0.3758,2620.8,2620.7,2.87200575]
[1727405697438,0.3758,2620.8,2620.7,3.27810575]
[1727405697636,3.5836,2620.8,2620.7,1.7761]